[Event "WYCC U14 Open 2019"]
[Site "Mumbai"]
[Date "2019.10.04"]
[Round "4.3"]
[White "Samant Aditya S"]
[Black "Colbow, Collin"]
[Result "1-0"]
[ECO "B90"]
[WhiteElo "2334"]
[BlackElo "2148"]
[Annotator "NA"]
[PlyCount "79"]
[EventDate "2019.10.02"]
[EventType "swiss"]
[EventCountry "IND"]
[SourceTitle "playchess.com"]
[Source "ChessBase"]
[SourceQuality "1"]
[TimeControl "40/5400+30:1800+30"]

1. e4 {[%emt 0:00:00]} c5 {[%emt 0:00:00]} 2. Nf3 {[%emt 0:00:00]} d6 {[%emt 0:00:00]} 3. d4 {[%emt 0:00:00]} cxd4 {[%emt 0:00:00]} 4. Nxd4 {[%emt 0:00:00]} Nf6 {[%emt 0:00:02]} 5. Nc3 {[%emt 0:00:00]} a6 {[%emt 0:00:07]} 6. Be3 {[%emt 0:00:03]} e5 {[%emt 0:00:10]} 7. Nf3 {[%emt 0:00:14]} Be7 {[%emt 0:00:07]} 8. Bc4 {[%emt 0:00:08]} O-O {[%emt 0:00:07]} 9. O-O {[%emt 0:00:09]} Nc6 {[%emt 0:00:09]} 10. Qe2 {[%emt 0:07:38]} Na5 {[%emt 0:00:54]} 11. Bd5 {[%emt 0:04:45]} Be6 {[%emt 0:03:43]} 12. Rfd1 {[%emt 0:04:27]} Nd7 {[%emt 0:06:21]} 13. Nd2 {[%emt 0:09:55]} Rc8 {[%emt 0:12:48]} 14. Nf1 {[%emt 0:26:12]} b5 {[%emt 0:06:08]} 15. a4 {[%emt 0:13:34]} b4 {[%emt 0:06:39]} 16. Na2 {[%emt 0:02:01]} b3 {[%emt 0:01:17]} 17. Nc3 {[%emt 0:02:58]} bxc2 {[%emt 0:03:48]} 18. Qxc2 {[%emt 0:00:30]} Nc4 {[%emt 0:02:19]} 19. b3 {[%emt 0:05:37]} Ncb6 {[%emt 0:03:54]} 20. Bxb6 {[%emt 0:02:59]} Qxb6 {[%emt 0:01:59]} 21. Ne3 {[%emt 0:02:58]} Qc5 {[%emt 0:03:31]} 22. Bc4 {[%emt 0:00:51]} Nb6 {[%emt 0:05:08]} 23. Ned5 {[%emt 0:03:23]} Bg5 {[%emt 0:03:45]} 24. Nxb6 {[%emt 0:01:02]} Qxb6 {[%emt 0:00:05]} 25. Nd5 {[%emt 0:00:33]} Qc5 {[%emt 0:01:11]} 26. a5 {[%emt 0:05:02]} Kh8 {[%emt 0:03:31]} 27. Qe2 {[%emt 0:01:15]} f5 {[%emt 0:04:35]} 28. Bxa6 {[%emt 0:00:10]} fxe4 {[%emt 0:06:14]} 29. Bxc8 {[%emt 0:00:23]} Bxd5 {[%emt 0:00:19]} 30. b4 {[%emt 0:01:39]} Qc3 {[%emt 0:01:28]} 31. Qe1 {[%emt 0:03:54]} Qb3 {[%emt 0:11:16]} 32. Rab1 {[%emt 0:00:53]} Qa2 {[%emt 0:00:51]} 33. Bh3 {[%emt 0:01:17]} Bb3 {[%emt 0:01:23]} 34. Ra1 {[%emt 0:01:46]} Qc2 {[%emt 0:03:57]} 35. a6 {[%emt 0:00:15]} e3 {[%emt 0:00:57]} 36. fxe3 {[%emt 0:00:40]} Qe4 {[%emt 0:00:40]} 37. Rxd6 {[%emt 0:00:42]} Bxe3+ {[%emt 0:01:07]} 38. Kh1 {[%emt 0:00:01]} Qf4 {[%emt 0:00:13]} 39. Rd3 {[%emt 0:00:48]} Bd4 {[%emt 0:00:51]} 40. Rf3 {[%emt 0:00:10]} 1-0

[Event "WYCC U14 Open 2019"]
[Site "Mumbai"]
[Date "2019.10.04"]
[Round "4.6"]
[White "Tadic, Stefan"]
[Black "Manish, Kumar"]
[Result "0-1"]
[ECO "C49"]
[WhiteElo "2295"]
[BlackElo "2132"]
[Annotator "NA"]
[PlyCount "204"]
[EventDate "2019.10.02"]
[EventType "swiss"]
[EventCountry "IND"]
[SourceTitle "playchess.com"]
[Source "ChessBase"]
[SourceQuality "1"]
[TimeControl "40/5400+30:1800+30"]

1. e4 {[%emt 0:00:00]} e5 {[%emt 0:00:00]} 2. Nf3 {[%emt 0:00:00]} Nc6 {[%emt 0:00:04]} 3. Nc3 {[%emt 0:00:38]} Nf6 {[%emt 0:00:06]} 4. Bb5 {[%emt 0:00:04]} Bb4 {[%emt 0:00:04]} 5. O-O {[%emt 0:00:04]} O-O {[%emt 0:00:04]} 6. d3 {[%emt 0:00:03]} Bxc3 {[%emt 0:00:18]} 7. bxc3 {[%emt 0:00:04]} d6 {[%emt 0:00:06]} 8. Bg5 {[%emt 0:00:07]} Qe7 {[%emt 0:00:42]} 9. Re1 {[%emt 0:00:15]} Nd8 {[%emt 0:00:14]} 10. d4 {[%emt 0:00:06]} Ne6 {[%emt 0:00:40]} 11. Bd2 {[%emt 0:02:20]} c6 {[%emt 0:01:14]} 12. Bf1 {[%emt 0:04:57]} Qc7 {[%emt 0:00:27]} 13. g3 {[%emt 0:03:20]} h6 {[%emt 0:01:34]} 14. Bg2 {[%emt 0:00:17]} Re8 {[%emt 0:00:53]} 15. Nh4 {[%emt 0:12:23]} Nf8 {[%emt 0:06:15]} 16. h3 {[%emt 0:07:23]} Be6 {[%emt 0:03:27]} 17. f4 {[%emt 0:24:36]} Rad8 {[%emt 0:10:08]} 18. Qe2 {[%emt 0:05:05]} b5 {[%emt 0:02:07]} 19. Qf2 {[%emt 0:01:44]} N8h7 {[%emt 0:07:57]} 20. a4 {[%emt 0:04:15]} a6 {[%emt 0:07:47]} 21. Be3 {[%emt 0:02:21]} Qb8 {[%emt 0:02:16]} 22. axb5 {[%emt 0:06:31]} axb5 {[%emt 0:00:05]} 23. dxe5 {[%emt 0:03:54]} dxe5 {[%emt 0:01:35]} 24. Ba7 {[%emt 0:00:10]} Qb7 {[%emt 0:07:33]} 25. fxe5 {[%emt 0:01:41]} Nd7 {[%emt 0:00:54]} 26. Nf5 {[%emt 0:03:47]} Nxe5 {[%emt 0:02:28]} 27. Bb6 {[%emt 0:00:14]} Rd7 {[%emt 0:01:00]} 28. Ra7 {[%emt 0:02:08]} Qb8 {[%emt 0:00:32]} 29. Rea1 {[%emt 0:01:38]} Ng5 {[%emt 0:11:17]} 30. Rxd7 {[%emt 0:01:12]} Nxd7 {[%emt 0:00:16]} 31. Ba7 {[%emt 0:01:42]} Qc7 {[%emt 0:04:55]} 32. Bd4 {[%emt 0:00:50]} c5 {[%emt 0:01:44]} 33. Nxg7 {[%emt 0:00:20]} Rf8 {[%emt 0:00:38]} 34. Bf6 {[%emt 0:04:15]} Nxf6 {[%emt 0:05:44]} 35. Qxf6 {[%emt 0:00:05]} Qxg3 {[%emt 0:00:10]} 36. Nh5 {[%emt 0:03:49]} Nxh3+ {[%emt 0:00:30]} 37. Kh1 {[%emt 0:00:56]} Nf2+ {[%emt 0:00:52]} 38. Kg1 {[%emt 0:00:03]} Nxe4 {[%emt 0:05:32]} 39. Qxh6 {[%emt 0:01:20]} Qg5 {[%emt 0:00:07]} 40. Qxg5+ {[%emt 0:01:27]} Nxg5 {[%emt 0:00:02]} 41. Ra5 {[%emt 0:08:32]} Rb8 {[%emt 0:01:44]} 42. Bc6 {[%emt 0:01:14]} Bc4 {[%emt 0:04:28]} 43. Nf6+ {[%emt 0:01:09]} Kg7 {[%emt 0:01:31]} 44. Ne8+ {[%emt 0:00:39]} Kg6 {[%emt 0:03:04]} 45. Nd6 {[%emt 0:00:10]} Ne6 {[%emt 0:00:24]} 46. Nxc4 {[%emt 0:04:29]} bxc4 {[%emt 0:00:03]} 47. Bd5 {[%emt 0:00:04]} Rb1+ {[%emt 0:03:23]} 48. Kf2 {[%emt 0:01:23]} Rc1 {[%emt 0:00:29]} 49. Ke3 {[%emt 0:01:27]} Re1+ {[%emt 0:01:01]} 50. Kf2 {[%emt 0:01:17]} Re5 {[%emt 0:00:53]} 51. Bxc4 {[%emt 0:00:32]} Kf5 {[%emt 0:00:42]} 52. Ra7 {[%emt 0:05:00]} f6 {[%emt 0:00:27]} 53. Ra6 {[%emt 0:00:35]} Nf4 {[%emt 0:02:44]} 54. Bd3+ {[%emt 0:00:58]} Kg5 {[%emt 0:00:20]} 55. Ra8 {[%emt 0:00:50]} Nd5 {[%emt 0:01:14]} 56. Kg3 {[%emt 0:07:55]} Re3+ {[%emt 0:01:11]} 57. Kf2 {[%emt 0:00:04]} Re5 {[%emt 0:01:26]} 58. Kg3 {[%emt 0:00:03]} f5 {[%emt 0:00:18]} 59. Rg8+ {[%emt 0:00:04]} Kf6 {[%emt 0:00:09]} 60. Rf8+ {[%emt 0:00:29]} Ke6 {[%emt 0:02:49]} 61. Bc4 {[%emt 0:03:48]} Ke7 {[%emt 0:01:13]} 62. Rh8 {[%emt 0:00:50]} Nxc3 {[%emt 0:00:16]} 63. Bd3 {[%emt 0:00:47]} Nd5 {[%emt 0:00:15]} 64. Rh6 {[%emt 0:00:21]} Re3+ {[%emt 0:04:48]} 65. Kf2 {[%emt 0:00:20]} Re5 {[%emt 0:00:19]} 66. Kf3 {[%emt 0:00:22]} Nb4 {[%emt 0:01:29]} 67. Kf4 {[%emt 0:02:33]} Nxd3+ {[%emt 0:00:01]} 68. cxd3 {[%emt 0:00:00]} Rd5 {[%emt 0:00:39]} 69. Ke3 {[%emt 0:00:41]} Rd6 {[%emt 0:00:11]} 70. Rh7+ {[%emt 0:01:45]} Ke6 {[%emt 0:01:09]} 71. Rc7 {[%emt 0:00:22]} Kd5 {[%emt 0:00:52]} 72. Rf7 {[%emt 0:00:38]} Ke5 {[%emt 0:00:23]} 73. Re7+ {[%emt 0:00:17]} Re6 {[%emt 0:00:06]} 74. Rd7 {[%emt 0:00:46]} Rh6 {[%emt 0:02:30]} 75. Re7+ {[%emt 0:00:06]} Kd6 {[%emt 0:01:30]} 76. Rf7 {[%emt 0:00:03]} Rh3+ {[%emt 0:00:05]} 77. Ke2 {[%emt 0:00:32]} Ke5 {[%emt 0:00:38]} 78. Rc7 {[%emt 0:00:21]} Kd4 {[%emt 0:00:56]} 79. Rd7+ {[%emt 0:00:03]} Ke5 {[%emt 0:00:19]} 80. Rc7 {[%emt 0:00:01]} Rh2+ {[%emt 0:00:33]} 81. Kf3 {[%emt 0:01:06]} Rc2 {[%emt 0:00:24]} 82. Re7+ {[%emt 0:00:31]} Kd6 {[%emt 0:02:01]} 83. Rf7 {[%emt 0:00:11]} Rc1 {[%emt 0:00:31]} 84. Rf6+ {[%emt 0:01:39]} Ke5 {[%emt 0:01:10]} 85. Rc6 {[%emt 0:00:04]} Kd4 {[%emt 0:01:55]} 86. Rd6+ {[%emt 0:00:04]} Kc3 {[%emt 0:00:35]} 87. Ke2 {[%emt 0:01:29]} f4 {[%emt 0:04:07]} 88. Rd5 {[%emt 0:00:42]} Kb4 {[%emt 0:00:07]} 89. Rf5 {[%emt 0:00:34]} Rc2+ {[%emt 0:00:09]} 90. Kd1 {[%emt 0:00:29]} Rh2 {[%emt 0:01:13]} 91. Kc1 {[%emt 0:00:35]} Kc3 {[%emt 0:00:33]} 92. Rxc5+ {[%emt 0:00:25]} Kxd3 {[%emt 0:00:01]} 93. Rd5+ {[%emt 0:00:07]} Ke3 {[%emt 0:00:12]} 94. Re5+ {[%emt 0:00:23]} Kf2 {[%emt 0:00:38]} 95. Kd2 {[%emt 0:00:14]} f3 {[%emt 0:00:11]} 96. Rg5 {[%emt 0:00:45]} Rh8 {[%emt 0:00:07]} 97. Rd5 {[%emt 0:00:10]} Re8 {[%emt 0:00:17]} 98. Rd7 {[%emt 0:00:26]} Kf1 {[%emt 0:00:12]} 99. Rf7 {[%emt 0:01:23]} f2 {[%emt 0:00:10]} 100. Ra7 {[%emt 0:00:35]} Rf8 {[%emt 0:01:16]} 101. Rg7 {[%emt 0:00:26]} Rd8+ {[%emt 0:00:04]} 102. Ke3 {[%emt 0:00:08]} Ke1 {[%emt 0:00:28] Kd4} 0-1

[Event "WYCC U14 Open 2019"]
[Site "Mumbai"]
[Date "2019.10.04"]
[Round "4.7"]
[White "Aaryan Varshney"]
[Black "Bochnicka, Vladimir"]
[Result "1/2-1/2"]
[ECO "D47"]
[WhiteElo "2239"]
[BlackElo "2087"]
[Annotator "NA"]
[PlyCount "66"]
[EventDate "2019.10.02"]
[EventType "swiss"]
[EventCountry "IND"]
[SourceTitle "playchess.com"]
[Source "ChessBase"]
[SourceQuality "1"]
[TimeControl "40/5400+30:1800+30"]

1. d4 {[%emt 0:06:06]} d5 {[%emt 0:00:00]} 2. c4 {[%emt 0:00:07]} c6 {[%emt 0:00:00]} 3. Nf3 {[%emt 0:00:05]} Nf6 {[%emt 0:00:00]} 4. Nc3 {[%emt 0:00:03]} e6 {[%emt 0:00:00]} 5. e3 {[%emt 0:00:03]} Nbd7 {[%emt 0:00:08]} 6. Bd3 {[%emt 0:00:09]} dxc4 {[%emt 0:00:08]} 7. Bxc4 {[%emt 0:00:09]} b5 {[%emt 0:00:08]} 8. Bd3 {[%emt 0:00:12]} Bb7 {[%emt 0:00:08]} 9. O-O {[%emt 0:00:10]} a6 {[%emt 0:00:23]} 10. e4 {[%emt 0:00:08]} c5 {[%emt 0:00:30]} 11. d5 {[%emt 0:00:08]} Qc7 {[%emt 0:00:07]} 12. Bc2 {[%emt 0:00:23]} O-O-O {[%emt 0:01:56]} 13. dxe6 {[%emt 0:06:40]} Ne5 {[%emt 0:01:14]} 14. Qe2 {[%emt 0:01:00]} Nxf3+ {[%emt 0:00:09]} 15. Qxf3 {[%emt 0:00:12]} fxe6 {[%emt 0:00:16]} 16. Qh3 {[%emt 0:04:23]} Qf7 {[%emt 0:10:33]} 17. Be3 {[%emt 0:08:33]} Be7 {[%emt 0:08:54]} 18. Rfd1 {[%emt 0:02:53]} g5 {[%emt 0:08:45]} 19. Rxd8+ {[%emt 0:05:34]} Rxd8 {[%emt 0:02:24]} 20. Bxg5 {[%emt 0:01:16]} Rg8 {[%emt 0:04:01]} 21. Be3 {[%emt 0:12:10]} Ng4 {[%emt 0:10:35]} 22. Rd1 {[%emt 0:02:16]} Rg6 {[%emt 0:10:01]} 23. a4 {[%emt 0:05:09]} b4 {[%emt 0:02:51]} 24. Ne2 {[%emt 0:00:38]} Bg5 {[%emt 0:06:59]} 25. f4 {[%emt 0:08:10]} Be7 {[%emt 0:05:23]} 26. f5 {[%emt 0:03:28]} exf5 {[%emt 0:02:47]} 27. exf5 {[%emt 0:01:15]} Rg8 {[%emt 0:02:48]} 28. f6 {[%emt 0:01:20]} Qxf6 {[%emt 0:03:08]} 29. Bf4 {[%emt 0:02:06]} c4 {[%emt 0:07:20]} 30. Qh5 {[%emt 0:02:49]} Ne3 {[%emt 0:07:33]} 31. Qh3+ {[%emt 0:07:19]} Ng4 {[%emt 0:00:31]} 32. Qh5 {[%emt 0:12:53]} Ne3 {[%emt 0:00:07]} 33. Qh3+ {[%emt 0:06:44]} Ng4 {[%emt 0:00:06]} 1/2-1/2

[Event "WYCC U14 Open 2019"]
[Site "Mumbai"]
[Date "2019.10.04"]
[Round "4.10"]
[White "Pranav Vijay"]
[Black "Kondakov, Adrian"]
[Result "1-0"]
[ECO "C47"]
[WhiteElo "2265"]
[BlackElo "1991"]
[Annotator "NA"]
[PlyCount "137"]
[EventDate "2019.10.02"]
[EventType "swiss"]
[EventCountry "IND"]
[SourceTitle "playchess.com"]
[Source "ChessBase"]
[SourceQuality "1"]
[TimeControl "40/5400+30:1800+30"]

1. e4 {[%emt 0:00:00]} e5 {[%emt 0:00:00]} 2. Nf3 {[%emt 0:00:00]} Nc6 {[%emt 0:00:00]} 3. Nc3 {[%emt 0:00:00]} Nf6 {[%emt 0:00:07]} 4. g3 {[%emt 0:00:00]} d5 {[%emt 0:03:38]} 5. exd5 {[%emt 0:00:16]} Nxd5 {[%emt 0:00:06]} 6. Bg2 {[%emt 0:00:07]} Nxc3 {[%emt 0:02:15]} 7. bxc3 {[%emt 0:00:08]} Bc5 {[%emt 0:00:51]} 8. O-O {[%emt 0:00:16]} O-O {[%emt 0:01:16]} 9. d3 {[%emt 0:00:04]} Re8 {[%emt 0:02:59]} 10. Qe2 {[%emt 0:03:46]} h6 {[%emt 0:07:15]} 11. a4 {[%emt 0:03:17]} Bb6 {[%emt 0:04:56]} 12. Rb1 {[%emt 0:03:08]} Bg4 {[%emt 0:02:50]} 13. h3 {[%emt 0:00:52]} Bxf3 {[%emt 0:06:01]} 14. Bxf3 {[%emt 0:00:50]} Qd7 {[%emt 0:01:23]} 15. Qe4 {[%emt 0:09:32]} Rad8 {[%emt 0:04:49]} 16. g4 {[%emt 0:03:27]} Qe7 {[%emt 0:09:34]} 17. Kg2 {[%emt 0:02:06]} Qf6 {[%emt 0:07:42]} 18. Rb5 {[%emt 0:07:14]} Qe6 {[%emt 0:08:43]} 19. h4 {[%emt 0:09:15]} a6 {[%emt 0:03:29]} 20. Rd5 {[%emt 0:00:38]} Rxd5 {[%emt 0:01:23]} 21. Qxd5 {[%emt 0:00:05]} Qxd5 {[%emt 0:03:58]} 22. Bxd5 {[%emt 0:00:06]} Nd8 {[%emt 0:05:37]} 23. Re1 {[%emt 0:02:33]} c6 {[%emt 0:00:53]} 24. Bf3 {[%emt 0:04:27]} Ba5 {[%emt 0:04:15]} 25. Bd2 {[%emt 0:00:08]} Kf8 {[%emt 0:01:30]} 26. Kf1 {[%emt 0:03:17]} Re6 {[%emt 0:02:31]} 27. Be4 {[%emt 0:01:13]} Kg8 {[%emt 0:03:24]} 28. Bf5 {[%emt 0:05:37]} Re8 {[%emt 0:00:37]} 29. h5 {[%emt 0:01:34]} Kf8 {[%emt 0:00:36]} 30. Rb1 {[%emt 0:00:45]} Kg8 {[%emt 0:00:41]} 31. Rb3 {[%emt 0:01:04]} Re7 {[%emt 0:01:32]} 32. Be3 {[%emt 0:01:59]} Ne6 {[%emt 0:01:33]} 33. Kg1 {[%emt 0:05:14]} Kh8 {[%emt 0:02:01]} 34. Kg2 {[%emt 0:00:45]} Kg8 {[%emt 0:01:10]} 35. Kg3 {[%emt 0:01:11]} Bd8 {[%emt 0:01:06]} 36. Bxe6 {[%emt 0:00:40]} fxe6 {[%emt 0:00:05]} 37. Kf3 {[%emt 0:00:07]} Kf7 {[%emt 0:00:45]} 38. Ke4 {[%emt 0:00:27]} Kf6 {[%emt 0:01:04]} 39. f3 {[%emt 0:00:12]} Rd7 {[%emt 0:02:26]} 40. Bf2 {[%emt 0:00:45]} Ba5 {[%emt 0:04:01]} 41. Bh4+ {[%emt 0:30:43]} Kf7 {[%emt 0:02:07]} 42. Kxe5 {[%emt 0:00:00]} Bc7+ {[%emt 0:00:29]} 43. Ke4 {[%emt 0:00:00]} Ba5 {[%emt 0:00:08]} 44. Bg3 {[%emt 0:00:00]} Re7 {[%emt 0:01:49]} 45. Be5 {[%emt 0:00:00]} Rd7 {[%emt 0:00:05]} 46. Rb1 {[%emt 0:00:00]} Re7 {[%emt 0:00:24]} 47. f4 {[%emt 0:00:00]} Rd7 {[%emt 0:00:30]} 48. g5 {[%emt 0:00:00]} hxg5 {[%emt 0:03:36]} 49. fxg5 {[%emt 0:00:00]} Kg8 {[%emt 0:00:49]} 50. g6 {[%emt 0:00:00]} Bd8 {[%emt 0:00:19]} 51. c4 {[%emt 0:00:00]} Bg5 {[%emt 0:01:02]} 52. Kf3 {[%emt 0:00:00]} Bd2 {[%emt 0:00:23]} 53. c5 {[%emt 0:00:00]} Bg5 {[%emt 0:00:11]} 54. Bd6 {[%emt 0:00:00]} Bf6 {[%emt 0:02:19]} 55. Re1 {[%emt 0:00:00]} e5 {[%emt 0:01:59]} 56. d4 {[%emt 0:00:00]} Rd8 {[%emt 0:03:24]} 57. dxe5 {[%emt 0:00:00]} Bg5 {[%emt 0:00:09]} 58. Rb1 {[%emt 0:00:00]} a5 {[%emt 0:01:31]} 59. Rxb7 {[%emt 0:00:00]} Rc8 {[%emt 0:00:12]} 60. Ke4 {[%emt 0:00:00]} Bh4 {[%emt 0:00:33]} 61. e6 {[%emt 0:00:00]} Bf6 {[%emt 0:00:07]} 62. Rf7 {[%emt 0:00:00]} Re8 {[%emt 0:00:12]} 63. Kf5 {[%emt 0:00:00]} Bd8 {[%emt 0:00:21]} 64. e7 {[%emt 0:00:00]} Bxe7 {[%emt 0:00:04]} 65. Bxe7 {[%emt 0:00:00]} Rb8 {[%emt 0:00:05]} 66. Rf8+ {[%emt 0:00:00]} Rxf8+ {[%emt 0:00:04]} 67. Bxf8 {[%emt 0:00:00]} Kxf8 {[%emt 0:00:05]} 68. Ke6 {[%emt 0:00:00]} Kg8 {[%emt 0:00:30]} 69. Kd6 {[%emt 0:00:00]} 1-0

[Event "WYCC U14 Open 2019"]
[Site "Mumbai"]
[Date "2019.10.04"]
[Round "4.11"]
[White "Wu, Logan"]
[Black "Morgunov, Marc"]
[Result "0-1"]
[ECO "C78"]
[WhiteElo "1994"]
[BlackElo "2280"]
[Annotator "NA"]
[PlyCount "74"]
[EventDate "2019.10.02"]
[EventType "swiss"]
[EventCountry "IND"]
[SourceTitle "playchess.com"]
[Source "ChessBase"]
[SourceQuality "1"]
[TimeControl "40/5400+30:1800+30"]

1. e4 {[%emt 0:00:00]} e5 {[%emt 0:00:00]} 2. Nf3 {[%emt 0:00:00]} Nc6 {[%emt 0:00:00]} 3. Bb5 {[%emt 0:00:00]} a6 {[%emt 0:00:00]} 4. Ba4 {[%emt 0:00:00]} Nf6 {[%emt 0:00:02]} 5. O-O {[%emt 0:00:00]} b5 {[%emt 0:01:08]} 6. Bb3 {[%emt 0:00:00]} d6 {[%emt 0:00:51]} 7. c3 {[%emt 0:00:09]} Na5 {[%emt 0:01:43]} 8. Bc2 {[%emt 0:00:13]} c5 {[%emt 0:01:37]} 9. d4 {[%emt 0:07:22]} Qc7 {[%emt 0:02:17]} 10. h3 {[%emt 0:01:07]} Be7 {[%emt 0:04:58]} 11. Re1 {[%emt 0:02:21]} Bd7 {[%emt 0:03:27]} 12. Nbd2 {[%emt 0:05:43]} Rc8 {[%emt 0:08:40]} 13. dxe5 {[%emt 0:11:00]} dxe5 {[%emt 0:00:23]} 14. Nf1 {[%emt 0:01:30]} O-O {[%emt 0:04:09]} 15. Bg5 {[%emt 0:12:39]} Be6 {[%emt 0:19:34]} 16. Ne3 {[%emt 0:13:06]} Nc4 {[%emt 0:03:06]} 17. Nxc4 {[%emt 0:19:46]} Bxc4 {[%emt 0:02:02]} 18. Bb3 {[%emt 0:03:14]} Rfd8 {[%emt 0:01:14]} 19. Qc1 {[%emt 0:00:17]} Bd3 {[%emt 0:02:30]} 20. Bxf6 {[%emt 0:00:26]} Bxf6 {[%emt 0:00:08]} 21. Bd5 {[%emt 0:00:05]} c4 {[%emt 0:01:49]} 22. Qd2 {[%emt 0:02:34]} h6 {[%emt 0:02:45]} 23. Qe3 {[%emt 0:04:12]} a5 {[%emt 0:05:24]} 24. Red1 {[%emt 0:01:04]} Qc5 {[%emt 0:01:25]} 25. Qxc5 {[%emt 0:07:17]} Rxc5 {[%emt 0:00:05]} 26. Rd2 {[%emt 0:00:58]} Rcxd5 {[%emt 0:06:36]} 27. exd5 {[%emt 0:00:06]} e4 {[%emt 0:00:06]} 28. Ne1 {[%emt 0:00:59]} b4 {[%emt 0:00:20]} 29. cxb4 {[%emt 0:00:50]} axb4 {[%emt 0:01:54]} 30. Nxd3 {[%emt 0:00:45]} exd3 {[%emt 0:00:51]} 31. g3 {[%emt 0:03:19]} Rxd5 {[%emt 0:01:05]} 32. Rad1 {[%emt 0:04:10]} c3 {[%emt 0:00:15]} 33. bxc3 {[%emt 0:00:35]} bxc3 {[%emt 0:00:06]} 34. f4 {[%emt 0:00:29]} cxd2 {[%emt 0:00:15]} 35. Rxd2 {[%emt 0:00:01]} Bc3 {[%emt 0:00:14]} 36. Rd1 {[%emt 0:00:02]} d2 {[%emt 0:00:11]} 37. Kf2 {[%emt 0:00:02]} Ra5 {[%emt 0:00:17]} 0-1

[Event "WYCC U14 Open 2019"]
[Site "Mumbai"]
[Date "2019.10.04"]
[Round "4.12"]
[White "Sun, Jiajun B"]
[Black "Arhan Chethan Anand"]
[Result "1-0"]
[ECO "C77"]
[WhiteElo "1977"]
[BlackElo "2167"]
[Annotator "NA"]
[PlyCount "159"]
[EventDate "2019.10.02"]
[EventType "swiss"]
[EventCountry "IND"]
[SourceTitle "playchess.com"]
[Source "ChessBase"]
[SourceQuality "1"]
[TimeControl "40/5400+30:1800+30"]

1. e4 {[%emt 0:00:00]} e5 {[%emt 0:00:00]} 2. Nf3 {[%emt 0:00:00]} Nc6 {[%emt 0:00:00]} 3. Bb5 {[%emt 0:00:00]} a6 {[%emt 0:00:00]} 4. Ba4 {[%emt 0:00:00]} Nf6 {[%emt 0:00:01]} 5. d3 {[%emt 0:00:00]} d6 {[%emt 0:00:07]} 6. c3 {[%emt 0:00:11]} g6 {[%emt 0:00:06]} 7. O-O {[%emt 0:00:53]} Bg7 {[%emt 0:00:15]} 8. Nbd2 {[%emt 0:00:36]} b5 {[%emt 0:00:11]} 9. Bb3 {[%emt 0:00:24]} O-O {[%emt 0:00:10]} 10. Re1 {[%emt 0:00:58]} Na5 {[%emt 0:00:54]} 11. Bc2 {[%emt 0:00:06]} c5 {[%emt 0:00:06]} 12. d4 {[%emt 0:02:09]} Nc6 {[%emt 0:02:07]} 13. dxc5 {[%emt 0:03:25]} dxc5 {[%emt 0:00:11]} 14. a4 {[%emt 0:00:08]} Be6 {[%emt 0:04:29]} 15. Nf1 {[%emt 0:04:46]} Qe7 {[%emt 0:01:52]} 16. Ne3 {[%emt 0:01:19]} Rfd8 {[%emt 0:02:51]} 17. Qe2 {[%emt 0:01:49]} c4 {[%emt 0:03:41]} 18. Ng5 {[%emt 0:00:45]} Rac8 {[%emt 0:12:04]} 19. axb5 {[%emt 0:01:36]} axb5 {[%emt 0:00:06]} 20. Bd2 {[%emt 0:00:46]} Bf8 {[%emt 0:04:06]} 21. Red1 {[%emt 0:02:28]} h6 {[%emt 0:05:49]} 22. Nxe6 {[%emt 0:00:25]} Qxe6 {[%emt 0:00:25]} 23. h3 {[%emt 0:02:13]} Kh7 {[%emt 0:03:04]} 24. Be1 {[%emt 0:02:41]} Bc5 {[%emt 0:02:03]} 25. Ra6 {[%emt 0:02:21]} Rxd1 {[%emt 0:01:15]} 26. Nxd1 {[%emt 0:01:32]} Nh5 {[%emt 0:06:12]} 27. Ne3 {[%emt 0:07:21]} Nf4 {[%emt 0:00:24]} 28. Qf3 {[%emt 0:00:34]} Bxe3 {[%emt 0:05:33]} 29. Qxe3 {[%emt 0:00:55]} Qd6 {[%emt 0:08:41]} 30. Kh2 {[%emt 0:01:01]} Ne6 {[%emt 0:01:09]} 31. Bd2 {[%emt 0:01:44]} h5 {[%emt 0:02:43]} 32. b4 {[%emt 0:11:10]} cxb3 {[%emt 0:05:40]} 33. Bxb3 {[%emt 0:00:03]} Nc5 {[%emt 0:02:35]} 34. Bxf7 {[%emt 0:00:17]} Qf8 {[%emt 0:00:44]} 35. Ra1 {[%emt 0:00:26]} Ne7 {[%emt 0:05:17]} 36. Bd5 {[%emt 0:01:09]} Nxd5 {[%emt 0:08:21]} 37. exd5 {[%emt 0:00:07]} Qg7 {[%emt 0:01:55]} 38. Rb1 {[%emt 0:00:47]} Nb7 {[%emt 0:04:54]} 39. Rxb5 {[%emt 0:08:25]} Nd6 {[%emt 0:00:08]} 40. Rb4 {[%emt 0:00:08]} Nc4 {[%emt 0:00:41]} 41. Qe2 {[%emt 0:30:17]} Qc7 {[%emt 0:30:23]} 42. Bg5 {[%emt 0:00:39]} Nb6 {[%emt 0:00:44]} 43. Qb5 {[%emt 0:00:57]} e4+ {[%emt 0:00:55]} 44. g3 {[%emt 0:00:13]} Nc4 {[%emt 0:00:15]} 45. Qb7 {[%emt 0:00:19]} Ne5 {[%emt 0:00:55]} 46. d6 {[%emt 0:01:25]} Qf7 {[%emt 0:00:31]} 47. Qxf7+ {[%emt 0:00:35]} Nxf7 {[%emt 0:00:06]} 48. d7 {[%emt 0:00:03]} Rxc3 {[%emt 0:01:29]} 49. d8=Q {[%emt 0:00:12]} Nxd8 {[%emt 0:00:04]} 50. Bxd8 {[%emt 0:00:05]} e3 {[%emt 0:00:03]} 51. fxe3 {[%emt 0:00:35]} Rxe3 {[%emt 0:00:10]} 52. Bg5 {[%emt 0:00:03]} Re2+ {[%emt 0:00:04]} 53. Kg1 {[%emt 0:00:06]} Re5 {[%emt 0:00:26]} 54. h4 {[%emt 0:00:24]} Re2 {[%emt 0:00:04]} 55. Rb7+ {[%emt 0:00:05]} Kg8 {[%emt 0:00:04]} 56. Rb6 {[%emt 0:00:06]} Kg7 {[%emt 0:00:04]} 57. Rf6 {[%emt 0:00:07]} Ra2 {[%emt 0:00:09]} 58. Rf2 {[%emt 0:00:05]} Ra1+ {[%emt 0:00:04]} 59. Kg2 {[%emt 0:00:03]} Ra3 {[%emt 0:00:06]} 60. Re2 {[%emt 0:00:04]} Rb3 {[%emt 0:00:21]} 61. Re3 {[%emt 0:00:05]} Rb2+ {[%emt 0:00:06]} 62. Kf3 {[%emt 0:00:03]} Rb4 {[%emt 0:00:06]} 63. Re4 {[%emt 0:00:04]} Rb3+ {[%emt 0:00:04]} 64. Kf4 {[%emt 0:00:05]} Ra3 {[%emt 0:00:03]} 65. Re7+ {[%emt 0:00:18]} Kf8 {[%emt 0:00:07]} 66. Re3 {[%emt 0:00:28]} Ra5 {[%emt 0:00:04]} 67. Rb3 {[%emt 0:01:50]} Kf7 {[%emt 0:00:08]} 68. Rd3 {[%emt 0:00:20]} Ke6 {[%emt 0:00:09]} 69. Re3+ {[%emt 0:00:49]} Kf7 {[%emt 0:00:05]} 70. Re7+ {[%emt 0:00:03]} Kf8 {[%emt 0:00:04]} 71. Rd7 {[%emt 0:00:05]} Rb5 {[%emt 0:00:23]} 72. Ke4 {[%emt 0:00:12]} Ra5 {[%emt 0:00:15]} 73. Rd5 {[%emt 0:00:08]} Ra3 {[%emt 0:00:40]} 74. Ke5 {[%emt 0:00:08]} Rb3 {[%emt 0:00:16]} 75. Rd8+ {[%emt 0:02:05]} Kf7 {[%emt 0:00:06]} 76. Rd7+ {[%emt 0:00:03]} Kf8 {[%emt 0:00:06]} 77. Ke6 {[%emt 0:00:18]} Rb6+ {[%emt 0:00:55]} 78. Rd6 {[%emt 0:00:08]} Rb3 {[%emt 0:00:02]} 79. Kf6 {[%emt 0:00:07]} Rf3+ {[%emt 0:00:13]} 80. Kxg6 {[%emt 0:00:05]} 1-0